[Event "Titled Tuesday Blitz December 13 Early 2022"]
[White "Forgacs, Attila Jr."]
[Black "Sprenar, Petr"]
[WhiteFideId "773654"]
[BlackFideId "397164"]
[WhiteElo "2168"]
[BlackElo "2182"]
[Result "0-1"]
[Round "06"]
[TimeControl "180+1"]
[Date "2022.12.14"]
[WhiteClock "0:00:02"]
[BlackClock "0:00:17"]

1. e4 {[%clk 0:03:00]}  c5 {[%clk 0:02:56]} 2. d3 {[%clk 0:03:00]}  e6 {[%clk 0:02:56]} 3. g3 {[%clk 0:03:01]}  Nc6 {[%clk 0:02:56]} 4. Bg2 {[%clk 0:03:01]}  g6 {[%clk 0:02:57]} 5. f4 {[%clk 0:03:02]}  Bg7 {[%clk 0:02:57]} 6. Nf3 {[%clk 0:03:02]}  Nge7 {[%clk 0:02:58]} 7. O-O {[%clk 0:03:01]}  O-O {[%clk 0:02:58]} 8. Be3 {[%clk 0:03:01]}  d6 {[%clk 0:02:58]} 9. c3 {[%clk 0:03:02]}  Rb8 {[%clk 0:02:58]} 10. a4 {[%clk 0:02:59]}  a6 {[%clk 0:02:58]} 11. Qe2 {[%clk 0:02:57]}  b5 {[%clk 0:02:58]} 12. axb5 {[%clk 0:02:57]}  axb5 {[%clk 0:02:59]} 13. Nbd2 {[%clk 0:02:57]}  b4 {[%clk 0:02:58]} 14. d4 {[%clk 0:02:54]}  bxc3 {[%clk 0:02:56]} 15. bxc3 {[%clk 0:02:54]}  cxd4 {[%clk 0:02:55]} 16. cxd4 {[%clk 0:02:55]}  Nb4 {[%clk 0:02:32]} 17. Rfb1 {[%clk 0:02:45]}  Bd7 {[%clk 0:02:26]} 18. Nc4 {[%clk 0:02:34]}  d5 {[%clk 0:02:16]} 19. exd5 {[%clk 0:02:28]}  Nexd5 {[%clk 0:02:17]} 20. Nfe5 {[%clk 0:02:26]}  Nc3 {[%clk 0:02:13]} 21. Qd2 {[%clk 0:02:16]}  Nxb1 {[%clk 0:02:13]} 22. Rxb1 {[%clk 0:02:17]}  Na6 {[%clk 0:02:08]} 23. Ra1 {[%clk 0:02:17]}  Nc7 {[%clk 0:02:02]} 24. g4 {[%clk 0:01:18]}  Bb5 {[%clk 0:01:58]} 25. Na5 {[%clk 0:01:14]}  Qd6 {[%clk 0:01:24]} 26. Nb7 {[%clk 0:00:59]}  Qb6 {[%clk 0:01:10]} 27. Nc5 {[%clk 0:00:54]}  Rfd8 {[%clk 0:01:03]} 28. Qf2 {[%clk 0:00:45]}  Nd5 {[%clk 0:01:02]} 29. Bxd5 {[%clk 0:00:38]}  Rxd5 {[%clk 0:01:02]} 30. f5 {[%clk 0:00:39]}  exf5 {[%clk 0:00:55]} 31. gxf5 {[%clk 0:00:36]}  Qf6 {[%clk 0:00:33]} 32. fxg6 {[%clk 0:00:17]}  Qxf2+ {[%clk 0:00:32]} 33. Kxf2 {[%clk 0:00:18]}  hxg6 {[%clk 0:00:29]} 34. Rb1 {[%clk 0:00:19]}  Rdd8 {[%clk 0:00:22]} 35. Nf3 {[%clk 0:00:05]}  Be8 {[%clk 0:00:22]} 36. Rd1 {[%clk 0:00:05]}  Rb2+ {[%clk 0:00:21]} 37. Kg3 {[%clk 0:00:05]}  Bc6 {[%clk 0:00:21]} 38. Ng5 {[%clk 0:00:04]}  Ra8 {[%clk 0:00:19]} 39. Bf2 {[%clk 0:00:02]}  Raa2 {[%clk 0:00:19]} 40. Nd3 {[%clk 0:00:02]}  Rd2 {[%clk 0:00:18]} 41. Re1 {[%clk 0:00:03]}  Rxd3+ {[%clk 0:00:17]} 42. Kh4 {[%clk 0:00:03]}  Bf6 {[%clk 0:00:17]} 43. Re8+ {[%clk 0:00:02]}  Bxe8 {[%clk 0:00:17]} 0-1


[Site "https://www.chess.com"]

[Event "Titled Tuesday Blitz December 13 Early 2022"]
[White "Goryachkina, Aleksandra"]
[Black "Raahul V S"]
[WhiteFideId "4147103"]
[BlackFideId "25035525"]
[WhiteElo "2484"]
[BlackElo "2202"]
[Result "0-1"]
[Round "06"]
[TimeControl "180+1"]
[Date "2022.12.14"]
[WhiteClock "0:00:14"]
[BlackClock "0:00:53"]

1. e4 {[%clk 0:03:00]}  e6 {[%clk 0:02:56]} 2. d4 {[%clk 0:03:00]}  d5 {[%clk 0:02:55]} 3. Nc3 {[%clk 0:03:01]}  Nf6 {[%clk 0:02:51]} 4. Bg5 {[%clk 0:03:00]}  Be7 {[%clk 0:02:51]} 5. e5 {[%clk 0:02:59]}  Ne4 {[%clk 0:02:51]} 6. Bxe7 {[%clk 0:02:57]}  Nxc3 {[%clk 0:02:52]} 7. Bxd8 {[%clk 0:02:46]}  Nxd1 {[%clk 0:02:51]} 8. Rxd1 {[%clk 0:02:45]}  Kxd8 {[%clk 0:02:51]} 9. h4 {[%clk 0:02:45]}  Ke7 {[%clk 0:02:48]} 10. h5 {[%clk 0:02:45]}  h6 {[%clk 0:02:46]} 11. Rh3 {[%clk 0:02:43]}  b6 {[%clk 0:02:38]} 12. Rg3 {[%clk 0:02:41]}  Rg8 {[%clk 0:02:37]} 13. Bd3 {[%clk 0:02:41]}  Ba6 {[%clk 0:02:34]} 14. Ne2 {[%clk 0:02:37]}  Bxd3 {[%clk 0:02:33]} 15. Rdxd3 {[%clk 0:02:37]}  Nd7 {[%clk 0:02:32]} 16. Rg4 {[%clk 0:02:23]}  c5 {[%clk 0:02:30]} 17. c3 {[%clk 0:02:23]}  b5 {[%clk 0:02:17]} 18. Rdg3 {[%clk 0:02:08]}  Kf8 {[%clk 0:02:16]} 19. Nf4 {[%clk 0:01:54]}  Rc8 {[%clk 0:02:10]} 20. Kd2 {[%clk 0:01:47]}  b4 {[%clk 0:02:10]} 21. cxb4 {[%clk 0:01:31]}  cxb4 {[%clk 0:02:02]} 22. Nd3 {[%clk 0:01:30]}  a5 {[%clk 0:02:01]} 23. f4 {[%clk 0:01:24]}  f5 {[%clk 0:02:01]} 24. Rh4 {[%clk 0:01:13]}  Rc4 {[%clk 0:01:57]} 25. Rg6 {[%clk 0:00:54]}  Kf7 {[%clk 0:01:56]} 26. g4 {[%clk 0:00:52]}  Nf8 {[%clk 0:01:42]} 27. gxf5 {[%clk 0:00:52]}  Nxg6 {[%clk 0:01:42]} 28. fxg6+ {[%clk 0:00:39]}  Ke7 {[%clk 0:01:42]} 29. f5 {[%clk 0:00:35]}  exf5 {[%clk 0:01:41]} 30. b3 {[%clk 0:00:32]}  Rc3 {[%clk 0:01:36]} 31. Rf4 {[%clk 0:00:28]}  Rf8 {[%clk 0:01:34]} 32. Rf1 {[%clk 0:00:26]}  Kd7 {[%clk 0:01:02]} 33. Rf2 {[%clk 0:00:20]}  f4 {[%clk 0:00:54]} 34. Rxf4 {[%clk 0:00:14]}  Rxd3+ {[%clk 0:00:53]} 0-1


[Site "https://www.chess.com"]

[Event "Titled Tuesday Blitz December 13 Early 2022"]
[White "Haddouche, Mohamed"]
[Black "Jaskolka, Tomasz"]
[WhiteFideId "7900660"]
[BlackFideId "1170791"]
[WhiteElo "2443"]
[BlackElo "2126"]
[Result "1-0"]
[Round "06"]
[TimeControl "180+1"]
[Date "2022.12.14"]
[WhiteClock "0:00:18"]
[BlackClock "0:00:21"]

1. e4 {[%clk 0:03:00]}  c5 {[%clk 0:02:55]} 2. Nf3 {[%clk 0:03:00]}  e6 {[%clk 0:02:54]} 3. Nc3 {[%clk 0:02:59]}  Nc6 {[%clk 0:02:54]} 4. d4 {[%clk 0:02:55]}  cxd4 {[%clk 0:02:54]} 5. Nxd4 {[%clk 0:02:55]}  Qc7 {[%clk 0:02:54]} 6. a3 {[%clk 0:02:51]}  a6 {[%clk 0:02:54]} 7. Be3 {[%clk 0:02:48]}  Nf6 {[%clk 0:02:51]} 8. f4 {[%clk 0:02:48]}  d6 {[%clk 0:02:49]} 9. g4 {[%clk 0:02:44]}  h5 {[%clk 0:02:37]} 10. g5 {[%clk 0:02:29]}  Ng4 {[%clk 0:02:37]} 11. Bg1 {[%clk 0:02:29]}  Nxd4 {[%clk 0:01:50]} 12. Bxd4 {[%clk 0:02:13]}  e5 {[%clk 0:01:50]} 13. Nd5 {[%clk 0:02:13]}  Qc6 {[%clk 0:01:34]} 14. Bb6 {[%clk 0:01:53]}  exf4 {[%clk 0:01:32]} 15. Nc7+ {[%clk 0:01:53]}  Kd7 {[%clk 0:01:32]} 16. Nxa8 {[%clk 0:01:50]}  Qxe4+ {[%clk 0:01:32]} 17. Qe2 {[%clk 0:01:45]}  Qxh1 {[%clk 0:01:21]} 18. O-O-O {[%clk 0:01:37]}  Qxh2 {[%clk 0:01:12]} 19. Qc4 {[%clk 0:01:16]}  Be7 {[%clk 0:01:00]} 20. Qc7+ {[%clk 0:01:10]}  Ke6 {[%clk 0:00:59]} 21. Bc4+ {[%clk 0:01:10]}  Kf5 {[%clk 0:00:55]} 22. Qxe7 {[%clk 0:01:06]}  Be6 {[%clk 0:00:52]} 23. Bd3+ {[%clk 0:01:01]}  Ke5 {[%clk 0:00:50]} 24. Nc7 {[%clk 0:00:48]}  Ne3 {[%clk 0:00:43]} 25. Nxe6 {[%clk 0:00:32]}  fxe6 {[%clk 0:00:27]} 26. Qxg7+ {[%clk 0:00:31]}  Kd5 {[%clk 0:00:28]} 27. c4+ {[%clk 0:00:29]}  Nxc4 {[%clk 0:00:26]} 28. Bxc4+ {[%clk 0:00:24]}  Kxc4 {[%clk 0:00:26]} 29. Qc7+ {[%clk 0:00:20]}  Kb5 {[%clk 0:00:24]} 30. a4+ {[%clk 0:00:19]}  Kb4 {[%clk 0:00:23]} 31. Qc3+ {[%clk 0:00:18]}  Kxa4 {[%clk 0:00:21]} 32. Qc4# {[%clk 0:00:18]} 1-0


[Site "https://www.chess.com"]

[Event "Titled Tuesday Blitz December 13 Early 2022"]
[White "Hartikainen, Jarmo"]
[Black "Krzywda, Andrzej"]
[WhiteFideId "503134"]
[BlackFideId "1114565"]
[WhiteElo "2215"]
[BlackElo "2149"]
[Result "1-0"]
[Round "06"]
[TimeControl "180+1"]
[Date "2022.12.14"]
[WhiteClock "0:00:11"]
[BlackClock "0:00:50"]

1. e4 {[%clk 0:03:00]}  e5 {[%clk 0:02:59]} 2. Nf3 {[%clk 0:03:00]}  Nf6 {[%clk 0:03:00]} 3. d4 {[%clk 0:02:59]}  Nxe4 {[%clk 0:02:54]} 4. Bd3 {[%clk 0:02:59]}  d5 {[%clk 0:02:53]} 5. Nxe5 {[%clk 0:02:59]}  Bd6 {[%clk 0:02:47]} 6. c4 {[%clk 0:02:59]}  c6 {[%clk 0:02:43]} 7. Nc3 {[%clk 0:02:55]}  Nxc3 {[%clk 0:02:41]} 8. bxc3 {[%clk 0:02:55]}  O-O {[%clk 0:02:41]} 9. Qh5 {[%clk 0:02:26]}  g6 {[%clk 0:02:38]} 10. Qh6 {[%clk 0:01:54]}  Re8 {[%clk 0:02:35]} 11. f4 {[%clk 0:01:33]}  Bf8 {[%clk 0:02:31]} 12. Qg5 {[%clk 0:00:59]}  f6 {[%clk 0:02:31]} 13. Qg3 {[%clk 0:00:54]}  fxe5 {[%clk 0:02:31]} 14. fxe5 {[%clk 0:00:46]}  Bg7 {[%clk 0:02:14]} 15. O-O {[%clk 0:00:44]}  Be6 {[%clk 0:02:13]} 16. c5 {[%clk 0:00:39]}  b6 {[%clk 0:02:09]} 17. Bg5 {[%clk 0:00:37]}  Qd7 {[%clk 0:02:08]} 18. Bf6 {[%clk 0:00:35]}  bxc5 {[%clk 0:01:58]} 19. Rf4 {[%clk 0:00:28]}  Bxf6 {[%clk 0:01:37]} 20. Rxf6 {[%clk 0:00:25]}  Bf7 {[%clk 0:01:19]} 21. Raf1 {[%clk 0:00:16]}  Re7 {[%clk 0:01:19]} 22. e6 {[%clk 0:00:13]}  Bxe6 {[%clk 0:01:11]} 23. Bxg6 {[%clk 0:00:13]}  hxg6 {[%clk 0:00:58]} 24. Qxg6+ {[%clk 0:00:11]}  Rg7 {[%clk 0:00:50]} 25. Rf8# {[%clk 0:00:11]} 1-0


[Site "https://www.chess.com"]

[Event "Titled Tuesday Blitz December 13 Early 2022"]
[White "Herman, Daniel"]
[Black "Torres Dominguez, David"]
[WhiteFideId "30935008"]
[BlackFideId "2220857"]
[WhiteElo "1897"]
[BlackElo "2037"]
[Result "1-0"]
[Round "06"]
[TimeControl "180+1"]
[Date "2022.12.14"]
[WhiteClock "0:00:06"]
[BlackClock "0:00:23"]

1. e4 {[%clk 0:03:00]}  Nc6 {[%clk 0:02:58]} 2. Nf3 {[%clk 0:03:00]}  e5 {[%clk 0:02:58]} 3. Bb5 {[%clk 0:02:58]}  Nge7 {[%clk 0:02:58]} 4. d4 {[%clk 0:02:49]}  exd4 {[%clk 0:02:59]} 5. Nxd4 {[%clk 0:02:47]}  g6 {[%clk 0:02:59]} 6. Bg5 {[%clk 0:02:39]}  Bg7 {[%clk 0:02:58]} 7. c3 {[%clk 0:02:10]}  Nxd4 {[%clk 0:02:58]} 8. cxd4 {[%clk 0:02:09]}  c6 {[%clk 0:02:57]} 9. Ba4 {[%clk 0:01:59]}  Qa5+ {[%clk 0:02:49]} 10. Bd2 {[%clk 0:01:59]}  Qb6 {[%clk 0:02:48]} 11. Bc3 {[%clk 0:01:57]}  d5 {[%clk 0:02:46]} 12. e5 {[%clk 0:01:55]}  O-O {[%clk 0:02:45]} 13. O-O {[%clk 0:01:54]}  f6 {[%clk 0:02:45]} 14. Nd2 {[%clk 0:01:26]}  Nf5 {[%clk 0:02:35]} 15. Nf3 {[%clk 0:01:23]}  Bd7 {[%clk 0:02:24]} 16. Bb3 {[%clk 0:01:14]}  Rae8 {[%clk 0:02:21]} 17. Qd2 {[%clk 0:01:10]}  Ne7 {[%clk 0:02:10]} 18. Rfe1 {[%clk 0:01:08]}  fxe5 {[%clk 0:02:04]} 19. dxe5 {[%clk 0:01:08]}  Bg4 {[%clk 0:02:03]} 20. Nd4 {[%clk 0:01:04]}  Bc8 {[%clk 0:01:45]} 21. f4 {[%clk 0:00:29]}  Kh8 {[%clk 0:01:41]} 22. Kh1 {[%clk 0:00:25]}  Nf5 {[%clk 0:01:41]} 23. Nxf5 {[%clk 0:00:18]}  Bxf5 {[%clk 0:01:40]} 24. Bd4 {[%clk 0:00:18]}  Qc7 {[%clk 0:01:33]} 25. Rac1 {[%clk 0:00:17]}  Qb8 {[%clk 0:01:33]} 26. Bc5 {[%clk 0:00:16]}  Rf7 {[%clk 0:01:20]} 27. Bd6 {[%clk 0:00:16]}  Qd8 {[%clk 0:01:19]} 28. h3 {[%clk 0:00:14]}  Bf8 {[%clk 0:01:08]} 29. Bxf8 {[%clk 0:00:12]}  Rfxf8 {[%clk 0:01:09]} 30. Qd4 {[%clk 0:00:11]}  Qe7 {[%clk 0:01:05]} 31. Kg1 {[%clk 0:00:09]}  Kg8 {[%clk 0:00:59]} 32. Kh2 {[%clk 0:00:09]}  Qh4 {[%clk 0:00:56]} 33. Re3 {[%clk 0:00:07]}  Be6 {[%clk 0:00:54]} 34. Rf1 {[%clk 0:00:06]}  g5 {[%clk 0:00:49]} 35. Rg3 {[%clk 0:00:05]}  h6 {[%clk 0:00:41]} 36. Qe3 {[%clk 0:00:04]}  Kh8 {[%clk 0:00:36]} 37. Rgf3 {[%clk 0:00:04]}  g4 {[%clk 0:00:34]} 38. Rg3 {[%clk 0:00:04]}  gxh3 {[%clk 0:00:32]} 39. gxh3 {[%clk 0:00:05]}  Qxf4 {[%clk 0:00:31]} 40. Rxf4 {[%clk 0:00:05]}  Rxf4 {[%clk 0:00:27]} 41. Qxf4 {[%clk 0:00:06]}  Kh7 {[%clk 0:00:23]} 42. Qf6 {[%clk 0:00:06]} 1-0


[Site "https://www.chess.com"]

[Event "Titled Tuesday Blitz December 13 Early 2022"]
[White "Hoang, Canh Huan"]
[Black "Namitbir Singh Walia"]
[WhiteFideId "12400599"]
[BlackFideId "35071068"]
[WhiteElo "2283"]
[BlackElo "2239"]
[Result "1-0"]
[Round "06"]
[TimeControl "180+1"]
[Date "2022.12.14"]
[WhiteClock "0:00:54"]
[BlackClock "0:00:06"]

1. Nf3 {[%clk 0:03:00]}  Nf6 {[%clk 0:02:57]} 2. g3 {[%clk 0:03:01]}  g6 {[%clk 0:02:56]} 3. Bg2 {[%clk 0:03:02]}  Bg7 {[%clk 0:02:56]} 4. O-O {[%clk 0:03:03]}  O-O {[%clk 0:02:57]} 5. d3 {[%clk 0:03:04]}  c5 {[%clk 0:02:57]} 6. Nbd2 {[%clk 0:03:04]}  d5 {[%clk 0:02:57]} 7. Rb1 {[%clk 0:03:05]}  Nc6 {[%clk 0:02:55]} 8. b3 {[%clk 0:03:05]}  e5 {[%clk 0:02:51]} 9. Bb2 {[%clk 0:03:03]}  Re8 {[%clk 0:02:52]} 10. e4 {[%clk 0:03:01]}  d4 {[%clk 0:02:23]} 11. h3 {[%clk 0:02:53]}  b5 {[%clk 0:02:20]} 12. Nh2 {[%clk 0:02:44]}  Nh5 {[%clk 0:02:15]} 13. a4 {[%clk 0:02:29]}  a6 {[%clk 0:02:13]} 14. Ba3 {[%clk 0:02:28]}  Qd6 {[%clk 0:02:07]} 15. Bf3 {[%clk 0:02:24]}  Bxh3 {[%clk 0:02:05]} 16. Re1 {[%clk 0:02:22]}  Nf6 {[%clk 0:02:04]} 17. g4 {[%clk 0:02:20]}  h6 {[%clk 0:01:37]} 18. Qe2 {[%clk 0:01:56]}  Bf8 {[%clk 0:01:36]} 19. Kh1 {[%clk 0:01:55]}  Nh7 {[%clk 0:01:12]} 20. Rg1 {[%clk 0:01:43]}  Ng5 {[%clk 0:01:12]} 21. Rg3 {[%clk 0:01:43]}  Nb4 {[%clk 0:01:06]} 22. Rc1 {[%clk 0:01:25]}  Na2 {[%clk 0:00:56]} 23. Rcg1 {[%clk 0:01:21]}  Nc3 {[%clk 0:00:57]} 24. Qe1 {[%clk 0:01:21]}  bxa4 {[%clk 0:00:52]} 25. Nc4 {[%clk 0:01:20]}  Qd7 {[%clk 0:00:48]} 26. bxa4 {[%clk 0:01:19]}  Qxa4 {[%clk 0:00:47]} 27. Bc1 {[%clk 0:01:19]}  Qxc2 {[%clk 0:00:35]} 28. Bxg5 {[%clk 0:01:15]}  hxg5 {[%clk 0:00:36]} 29. Rxh3 {[%clk 0:01:14]}  Qxd3 {[%clk 0:00:35]} 30. Nb2 {[%clk 0:01:12]}  Qb5 {[%clk 0:00:34]} 31. Nd1 {[%clk 0:01:12]}  Nxd1 {[%clk 0:00:25]} 32. Bxd1 {[%clk 0:01:11]}  c4 {[%clk 0:00:23]} 33. Nf3 {[%clk 0:01:11]}  f6 {[%clk 0:00:15]} 34. Be2 {[%clk 0:01:04]}  d3 {[%clk 0:00:14]} 35. Bd1 {[%clk 0:01:03]}  Red8 {[%clk 0:00:13]} 36. Qd2 {[%clk 0:00:59]}  Be7 {[%clk 0:00:10]} 37. Kg2 {[%clk 0:00:58]}  Rac8 {[%clk 0:00:07]} 38. Rgh1 {[%clk 0:00:56]}  c3 {[%clk 0:00:07]} 39. Qa2+ {[%clk 0:00:55]}  Qc4 {[%clk 0:00:06]} 40. Bb3 {[%clk 0:00:54]} 1-0


[Site "https://www.chess.com"]

[Event "Titled Tuesday Blitz December 13 Early 2022"]
[White "Ibarra Jerez, Jose Carlos"]
[Black "Grunberg, Mihai-Lucian"]
[WhiteFideId "2226332"]
[BlackFideId "1204149"]
[WhiteElo "2638"]
[BlackElo "2363"]
[Result "1-0"]
[Round "06"]
[TimeControl "180+1"]
[Date "2022.12.14"]
[WhiteClock "0:00:44"]
[BlackClock "0:00:19"]

1. e4 {[%clk 0:02:59]}  Nf6 {[%clk 0:02:58]} 2. e5 {[%clk 0:02:59]}  Nd5 {[%clk 0:02:58]} 3. c4 {[%clk 0:03:00]}  Nb6 {[%clk 0:02:57]} 4. d4 {[%clk 0:03:00]}  d6 {[%clk 0:02:57]} 5. exd6 {[%clk 0:03:01]}  cxd6 {[%clk 0:02:57]} 6. Nc3 {[%clk 0:03:01]}  g6 {[%clk 0:02:57]} 7. a4 {[%clk 0:03:01]}  a5 {[%clk 0:02:57]} 8. c5 {[%clk 0:03:01]}  dxc5 {[%clk 0:02:55]} 9. Bb5+ {[%clk 0:03:01]}  N6d7 {[%clk 0:02:47]} 10. Bf4 {[%clk 0:03:00]}  Bg7 {[%clk 0:02:44]} 11. Nd5 {[%clk 0:02:58]}  O-O {[%clk 0:02:26]} 12. Bc7 {[%clk 0:02:55]}  Qe8 {[%clk 0:02:25]} 13. Nb6 {[%clk 0:02:56]}  Ra6 {[%clk 0:02:08]} 14. dxc5 {[%clk 0:02:55]}  Nc6 {[%clk 0:02:01]} 15. Bxa6 {[%clk 0:02:46]}  bxa6 {[%clk 0:02:01]} 16. Nxd7 {[%clk 0:02:40]}  Bxd7 {[%clk 0:01:59]} 17. Ne2 {[%clk 0:02:40]}  Bxb2 {[%clk 0:01:54]} 18. Rb1 {[%clk 0:02:40]}  Bf6 {[%clk 0:01:52]} 19. O-O {[%clk 0:02:39]}  Qc8 {[%clk 0:01:50]} 20. Bb6 {[%clk 0:02:36]}  Nb4 {[%clk 0:01:48]} 21. Bxa5 {[%clk 0:02:31]}  Nc6 {[%clk 0:01:39]} 22. Bc3 {[%clk 0:02:31]}  e5 {[%clk 0:01:34]} 23. Ng3 {[%clk 0:02:23]}  Qc7 {[%clk 0:01:25]} 24. Qd6 {[%clk 0:02:15]}  Qxd6 {[%clk 0:01:15]} 25. cxd6 {[%clk 0:02:16]}  Rd8 {[%clk 0:01:13]} 26. Ne4 {[%clk 0:02:15]}  Bg7 {[%clk 0:01:13]} 27. Rb6 {[%clk 0:02:02]}  Nd4 {[%clk 0:01:04]} 28. Bxd4 {[%clk 0:01:57]}  exd4 {[%clk 0:01:04]} 29. Rxa6 {[%clk 0:01:53]}  Be6 {[%clk 0:01:02]} 30. Rd1 {[%clk 0:01:47]}  Bc4 {[%clk 0:00:53]} 31. Rb6 {[%clk 0:01:44]}  Be5 {[%clk 0:00:47]} 32. a5 {[%clk 0:01:22]}  Be2 {[%clk 0:00:43]} 33. Rd2 {[%clk 0:01:03]}  d3 {[%clk 0:00:41]} 34. a6 {[%clk 0:00:57]}  Kg7 {[%clk 0:00:34]} 35. a7 {[%clk 0:00:56]}  Ra8 {[%clk 0:00:32]} 36. Rb7 {[%clk 0:00:51]}  Bf4 {[%clk 0:00:30]} 37. d7 {[%clk 0:00:45]}  Bxd2 {[%clk 0:00:23]} 38. Nxd2 {[%clk 0:00:46]}  Bg4 {[%clk 0:00:19]} 39. Rb8 {[%clk 0:00:44]}  Rxa7 {[%clk 0:00:19]} 40. d8=Q {[%clk 0:00:44]} 1-0


[Site "https://www.chess.com"]

[Event "Titled Tuesday Blitz December 13 Early 2022"]
[White "Itkis, Boris"]
[Black "Winkels, Marcel"]
[WhiteFideId "1209167"]
[BlackFideId "1003887"]
[WhiteElo "2216"]
[BlackElo "1900"]
[Result "0-1"]
[Round "06"]
[TimeControl "180+1"]
[Date "2022.12.14"]
[WhiteClock "0:00:01"]
[BlackClock "0:00:46"]

1. c4 {[%clk 0:03:00]}  Nf6 {[%clk 0:02:58]} 2. Nf3 {[%clk 0:03:01]}  c5 {[%clk 0:02:58]} 3. g3 {[%clk 0:03:00]}  d5 {[%clk 0:02:58]} 4. cxd5 {[%clk 0:03:00]}  Nxd5 {[%clk 0:02:59]} 5. Bg2 {[%clk 0:03:00]}  g6 {[%clk 0:02:59]} 6. O-O {[%clk 0:03:00]}  Bg7 {[%clk 0:02:57]} 7. Nc3 {[%clk 0:03:01]}  Nxc3 {[%clk 0:02:55]} 8. dxc3 {[%clk 0:02:55]}  Qxd1 {[%clk 0:02:47]} 9. Rxd1 {[%clk 0:02:56]}  O-O {[%clk 0:02:47]} 10. Bf4 {[%clk 0:02:56]}  Nc6 {[%clk 0:02:46]} 11. Nd2 {[%clk 0:02:20]}  Be6 {[%clk 0:02:44]} 12. Nb3 {[%clk 0:02:15]}  c4 {[%clk 0:02:39]} 13. Nc5 {[%clk 0:02:11]}  Bc8 {[%clk 0:02:31]} 14. Rd2 {[%clk 0:01:35]}  e5 {[%clk 0:02:28]} 15. Be3 {[%clk 0:01:28]}  f5 {[%clk 0:02:27]} 16. f3 {[%clk 0:01:14]}  b6 {[%clk 0:02:17]} 17. Nd7 {[%clk 0:00:37]}  Rd8 {[%clk 0:02:12]} 18. Rad1 {[%clk 0:00:37]}  Bb7 {[%clk 0:01:56]} 19. Bg5 {[%clk 0:00:35]}  Re8 {[%clk 0:01:34]} 20. Nf6+ {[%clk 0:00:30]}  Bxf6 {[%clk 0:01:34]} 21. Bxf6 {[%clk 0:00:31]}  Bc8 {[%clk 0:01:33]} 22. Bf1 {[%clk 0:00:20]}  Be6 {[%clk 0:01:28]} 23. Rd6 {[%clk 0:00:18]}  Rac8 {[%clk 0:01:25]} 24. e3 {[%clk 0:00:16]}  h6 {[%clk 0:01:15]} 25. f4 {[%clk 0:00:14]}  Kf7 {[%clk 0:01:05]} 26. fxe5 {[%clk 0:00:11]}  Na5 {[%clk 0:01:01]} 27. R1d2 {[%clk 0:00:08]}  Nb7 {[%clk 0:00:57]} 28. R6d4 {[%clk 0:00:07]}  Nc5 {[%clk 0:00:56]} 29. Bg2 {[%clk 0:00:05]}  Nd3 {[%clk 0:00:54]} 30. Rd6 {[%clk 0:00:03]}  Rc5 {[%clk 0:00:51]} 31. Bb7 {[%clk 0:00:03]}  Nxe5 {[%clk 0:00:49]} 32. Bxe5 {[%clk 0:00:04]}  Rxe5 {[%clk 0:00:48]} 33. Kf2 {[%clk 0:00:04]}  Bc8 {[%clk 0:00:47]} 34. Re2 {[%clk 0:00:01]}  Bxb7 {[%clk 0:00:46]} 0-1


[Site "https://www.chess.com"]

[Event "Titled Tuesday Blitz December 13 Early 2022"]
[White "Jimenez Almeida, Luis David"]
[Black "Shuvalova, Polina"]
[WhiteFideId "22242244"]
[BlackFideId "24171760"]
[WhiteElo "2158"]
[BlackElo "2361"]
[Result "1-0"]
[Round "06"]
[TimeControl "180+1"]
[Date "2022.12.14"]
[WhiteClock "0:00:09"]
[BlackClock "0:00:02"]

1. e4 {[%clk 0:03:00]}  e5 {[%clk 0:02:59]} 2. Nf3 {[%clk 0:03:00]}  Nc6 {[%clk 0:03:00]} 3. Bb5 {[%clk 0:03:00]}  a6 {[%clk 0:02:59]} 4. Ba4 {[%clk 0:03:01]}  Nf6 {[%clk 0:02:56]} 5. O-O {[%clk 0:03:00]}  b5 {[%clk 0:02:56]} 6. Bb3 {[%clk 0:03:00]}  Be7 {[%clk 0:02:56]} 7. Re1 {[%clk 0:03:00]}  O-O {[%clk 0:02:56]} 8. c3 {[%clk 0:03:01]}  d6 {[%clk 0:02:36]} 9. d3 {[%clk 0:02:58]}  Na5 {[%clk 0:02:30]} 10. Bc2 {[%clk 0:02:58]}  c5 {[%clk 0:02:29]} 11. Nbd2 {[%clk 0:02:58]}  Nc6 {[%clk 0:02:29]} 12. Qe2 {[%clk 0:02:55]}  h6 {[%clk 0:02:29]} 13. Nf1 {[%clk 0:02:55]}  Be6 {[%clk 0:02:29]} 14. a4 {[%clk 0:02:52]}  Rb8 {[%clk 0:02:28]} 15. Ng3 {[%clk 0:02:48]}  b4 {[%clk 0:02:27]} 16. c4 {[%clk 0:02:47]}  Bg4 {[%clk 0:02:24]} 17. Be3 {[%clk 0:02:42]}  Nh5 {[%clk 0:02:24]} 18. Nxh5 {[%clk 0:02:33]}  Bxh5 {[%clk 0:02:25]} 19. b3 {[%clk 0:02:32]}  Qd7 {[%clk 0:02:09]} 20. Bd1 {[%clk 0:02:20]}  Qe6 {[%clk 0:02:04]} 21. Qd2 {[%clk 0:02:18]}  f5 {[%clk 0:01:57]} 22. exf5 {[%clk 0:02:16]}  Qxf5 {[%clk 0:01:55]} 23. h3 {[%clk 0:02:14]}  Bg6 {[%clk 0:01:52]} 24. Be2 {[%clk 0:02:03]}  Kh8 {[%clk 0:01:50]} 25. Nh2 {[%clk 0:02:00]}  Bh4 {[%clk 0:01:41]} 26. Bf3 {[%clk 0:01:47]}  Qd7 {[%clk 0:01:33]} 27. Rad1 {[%clk 0:01:38]}  Rf7 {[%clk 0:01:30]} 28. Bxh6 {[%clk 0:01:26]}  gxh6 {[%clk 0:01:05]} 29. Qxh6+ {[%clk 0:01:27]}  Rh7 {[%clk 0:01:05]} 30. Qxg6 {[%clk 0:01:24]}  Rg8 {[%clk 0:00:48]} 31. Bxc6 {[%clk 0:01:09]}  Qxc6 {[%clk 0:00:47]} 32. Qe4 {[%clk 0:01:08]}  Qd7 {[%clk 0:00:46]} 33. Ng4 {[%clk 0:01:07]}  Bg5 {[%clk 0:00:43]} 34. Kf1 {[%clk 0:00:56]}  Rf7 {[%clk 0:00:41]} 35. g3 {[%clk 0:00:49]}  Rgf8 {[%clk 0:00:39]} 36. Kg2 {[%clk 0:00:49]}  Rg7 {[%clk 0:00:35]} 37. Re2 {[%clk 0:00:47]}  Bd8 {[%clk 0:00:35]} 38. Ne3 {[%clk 0:00:44]}  Rgf7 {[%clk 0:00:34]} 39. Qg4 {[%clk 0:00:40]}  Qb7+ {[%clk 0:00:33]} 40. Qe4 {[%clk 0:00:40]}  Qc8 {[%clk 0:00:32]} 41. g4 {[%clk 0:00:38]}  Qe6 {[%clk 0:00:30]} 42. Nf5 {[%clk 0:00:37]}  Bg5 {[%clk 0:00:29]} 43. f4 {[%clk 0:00:36]}  Bf6 {[%clk 0:00:20]} 44. d4 {[%clk 0:00:30]}  cxd4 {[%clk 0:00:11]} 45. Rxd4 {[%clk 0:00:30]}  Rd7 {[%clk 0:00:11]} 46. Rd5 {[%clk 0:00:28]}  Qg8 {[%clk 0:00:11]} 47. fxe5 {[%clk 0:00:22]}  Bxe5 {[%clk 0:00:09]} 48. Qf3 {[%clk 0:00:16]}  Rh7 {[%clk 0:00:10]} 49. Re3 {[%clk 0:00:13]}  Qg6 {[%clk 0:00:07]} 50. c5 {[%clk 0:00:11]}  Bc3 {[%clk 0:00:04]} 51. cxd6 {[%clk 0:00:10]}  Rd7 {[%clk 0:00:05]} 52. Qe4 {[%clk 0:00:09]}  Qh7 {[%clk 0:00:05]} 53. Qe6 {[%clk 0:00:08]}  Rfd8 {[%clk 0:00:04]} 54. Ne7 {[%clk 0:00:07]}  Qh4 {[%clk 0:00:02]} 55. Ng6+ {[%clk 0:00:06]}  Kg7 {[%clk 0:00:02]} 56. Nxh4 {[%clk 0:00:07]}  Rxd6 {[%clk 0:00:02]} 57. Nf5+ {[%clk 0:00:08]}  Kf8 {[%clk 0:00:02]} 58. Nxd6 {[%clk 0:00:09]}  Bf6 {[%clk 0:00:02]} 59. Qf7# {[%clk 0:00:09]} 1-0


[Site "https://www.chess.com"]